bitfinex/quotes_ETHUSD_20241207
["timestamp","ask_amount","ask_price","bid_price","bid_amount"]
[1733534460999,0.8099,4001.5,4000.9,0.52487]
[1733534461568,0.02970366,4001.4,4000.9,0.52487]
[1733534462165,0.8099,4001.5,4000.9,0.52487]
[1733534462367,0.02965289,4001.3,4000.9,0.52487]
[1733534462566,0.8099,4001.5,4000.9,0.52487]
[1733534462766,0.02960212,4001.2,4000.9,0.52487]
[1733534463002,0.8099,4001.5,4001.0,0.52485]
[1733534463204,0.02955135,4001.1,4001.0,0.52485]
[1733534463500,0.8099,4002.1,4000.7,0.02499134]
[1733534463663,0.1846598,4002.0,4001.2,0.52484]
[1733534463870,0.0300082,4002.0,4001.2,0.52484]
[1733534466379,0.0300082,4002.0,4001.0,0.52486]
[1733534466585,0.0300082,4002.0,4001.1,0.7544]
[1733534471308,0.0300082,4002.0,4001.1,1.27925]
[1733534473086,0.0300082,4002.0,4001.1,0.7544]
[1733534473311,0.0300082,4002.0,4001.3,0.52482]
[1733534473508,0.8099,4002.1,4001.2,0.60968659]
[1733534473835,0.58069841,4002.0,4001.2,0.60968659]
[1733534475048,0.55,4001.8,3999.7,0.52503]
[1733534475231,1.3606,4000.9,3999.7,2.34246588]
[1733534475399,0.55,4000.7,3999.7,2.34246588]
[1733534475933,0.02993592,4000.6,3999.7,2.86749588]
[1733534476811,0.02993592,4000.6,3999.8,3.52501]
[1733534477042,0.02993592,4000.6,3999.9,1.11174759]
[1733534477338,0.8106,4000.9,4000.1,2.34246588]
[1733534477500,0.0297126,4000.5,4000.3,0.52495]
[1733534477696,0.8106,4000.9,4000.3,0.52495]
[1733534478117,0.02961188,4000.8,4000.3,0.52495]
[1733534478301,0.02961188,4000.8,4000.4,0.58674159]
[1733534478496,0.57961188,4000.8,4000.1,5.34246588]
[1733534478897,0.8106,4000.7,3999.7,2.34246588]
[1733534479139,0.55,4000.6,3999.7,2.34246588]
[1733534479343,0.55,4000.6,3999.8,3.0]
[1733534479538,0.0295228,4000.5,3999.8,3.0]
[1733534479729,0.0295228,4000.5,3999.8,3.58674959]
[1733534479922,0.0295228,4000.5,3999.8,0.58674959]
[1733534480238,0.8106,4000.4,3999.3,2.86753588]
[1733534480442,0.83915854,4000.4,3999.3,2.34246588]
[1733534480602,0.83915854,4000.4,3999.6,0.52504]
[1733534481634,0.83915854,4000.4,3999.5,0.52506]
[1733534481832,0.55,4000.1,3999.2,3.0]
[1733534482036,0.55,4000.1,3998.9,2.34246588]
[1733534482037,0.55,4000.1,3999.0,3.52513]
[1733534482220,0.55,3999.9,3998.7,0.7998]
[1733534482423,2.30004,3999.9,3998.7,1.32496]
[1733534482620,0.02814445,3999.8,3998.8,0.52515]
[1733534483152,0.8106,3999.7,3998.8,0.52515]
[1733534483517,0.02772482,3999.6,3998.8,0.52515]
[1733534483722,0.02772482,3999.6,3998.9,0.432495]
[1733534484230,0.57772482,3999.6,3998.9,0.432495]
[1733534486269,0.57772482,3999.6,3998.9,2.77496088]
[1733534486572,0.02772482,3999.6,3999.4,3.0]
[1733534486736,0.02772482,3999.6,3999.5,0.58675359]
[1733534487071,0.8106,4000.0,3999.5,0.58675359]
[1733534487361,0.02752342,3999.6,3999.5,0.58675359]
[1733534487566,0.8106,4000.0,3999.5,0.58675359]
[1733534487869,0.02767585,3999.9,3999.5,0.58675359]
[1733534488064,0.8106,4000.0,3999.3,2.34246588]
[1733534488236,0.02762504,3999.8,3999.3,2.34246588]
[1733534488450,0.8106,4000.0,3999.3,2.34246588]
[1733534489074,0.02767585,3999.9,3999.3,2.34246588]
[1733534489280,0.8106,4000.0,3999.3,2.34246588]
[1733534489486,0.02762504,3999.8,3999.4,3.52507]
[1733534489786,0.02767585,3999.9,3999.4,3.0]
[1733534490093,0.8106,4000.0,3999.4,3.0]
[1733534490094,0.02742463,3999.7,3999.4,3.0]
[1733534490382,0.02742562,3999.6,3999.4,3.0]
[1733534490587,0.8106,4000.0,3999.4,3.0]
[1733534490748,0.02737481,3999.5,3999.4,3.0]
[1733534491082,0.8106,4000.0,3999.4,3.47885233]
[1733534491241,0.02737481,3999.5,3999.4,3.47885233]
[1733534491446,0.8106,4000.0,3999.4,3.47885233]
[1733534491945,0.02757804,3999.9,3999.0,3.0]
[1733534492288,0.02757804,3999.9,3998.9,2.86759588]
[1733534492289,0.55,3999.7,3998.9,2.34246588]
[1733534492452,2.30013,3999.7,3998.6,3.0]
[1733534492779,0.02742562,3999.6,3998.6,3.0]
[1733534493085,0.02742562,3999.6,3998.7,0.52516]
[1733534493870,0.02742562,3999.6,3998.8,0.52515]
[1733534494064,0.55,3999.7,3998.8,0.52515]
[1733534494296,0.02728849,3999.5,3998.8,0.52515]
[1733534494608,0.55,3999.7,3998.8,0.52515]
[1733534494609,0.02723767,3999.4,3998.8,1.11191159]
[1733534494892,0.55,3999.7,3998.8,1.11191159]
[1733534495098,0.02718685,3999.3,3998.9,0.52514]
[1733534495386,0.55,3999.7,3998.9,0.52514]
[1733534495586,0.0273393,3999.6,3998.9,0.52514]
[1733534496366,0.0273393,3999.6,3999.2,0.5251]
[1733534496707,0.8,3999.8,3999.0,3.0]
[1733534496905,0.8,4000.1,3999.3,2.34246588]
[1733534497278,0.8,4000.1,3999.3,5.34246588]
[1733534497486,0.02746769,4000.0,3999.3,5.34246588]
[1733534498003,0.02746769,4000.0,3999.4,3.0]
[1733534498204,0.8,4000.1,3999.4,3.0]
[1733534498408,0.02750897,3999.9,3999.4,3.0]
[1733534498618,0.8,4000.1,3999.4,3.0]
[1733534498797,0.8,4000.1,3999.0,3.52512]
[1733534499006,0.28255765,4000.0,3999.1,0.52511]
[1733534499483,0.02756265,4000.0,3999.1,0.52511]
[1733534500079,0.02756265,4000.0,3999.0,3.0]
[1733534500692,0.02756265,4000.0,3999.0,3.52513]
[1733534502490,0.8,3999.9,3999.0,3.52513]
[1733534502698,0.82751184,3999.9,3998.9,5.34246588]
[1733534503385,0.82751184,3999.9,3999.0,3.52512]
[1733534503591,0.8,3999.9,3999.3,2.34246588]
[1733534503929,0.8,3999.9,3999.5,0.52505]
[1733534504717,1.03669804,4000.9,3999.4,3.0]
[1733534504718,0.8,4000.8,3999.4,3.0]
[1733534504891,0.8,4000.8,3999.8,3.0]
[1733534505090,0.8,4000.8,4000.0,0.52499]
[1733534505326,0.8,4000.8,3999.9,0.02499788]
[1733534505498,0.8,4000.8,4000.1,0.52498]
[1733534505897,0.8,4000.8,4000.3,0.52495]
[1733534506098,0.8,4000.8,3999.9,0.7691]
[1733534506099,0.8,4000.8,4000.4,0.52494]
[1733534506326,0.02809946,4000.7,4000.4,0.52494]
[1733534506532,0.8,4000.8,4000.4,0.52494]
[1733534506702,0.8,4000.8,4000.5,0.52492]
[1733534506902,0.8,4000.8,4000.1,2.34246588]
[1733534506903,0.8,4001.8,4000.1,2.34246588]
[1733534507110,0.8,4001.6,4000.2,0.61115659]
[1733534507303,0.8,4001.6,3999.9,3.7691]
[1733534507536,0.8,4001.4,3999.9,3.7691]
[1733534507830,0.02840411,4001.3,3999.9,3.7691]
[1733534508014,0.8,4001.2,3999.9,3.0]
[1733534508397,0.02844351,4001.1,3999.8,2.34246588]
[1733534508594,0.7926,4001.0,4000.1,0.52498]
[1733534508807,0.02810529,4000.9,4000.1,0.52498]
[1733534509804,0.7926,4000.7,3999.5,0.52505]
[1733534510005,0.7926,4000.6,3999.5,0.52505]
[1733534510328,0.82055295,4000.6,3999.5,0.52505]
[1733534510530,0.7926,4000.4,3999.5,0.52505]
[1733534510730,0.7926,4000.4,3999.2,0.52509]
[1733534510912,0.7926,4000.2,3999.0,3.64298588]
[1733534511110,0.7926,4000.2,3999.3,0.52508]
[1733534511302,0.02759257,4000.1,3999.3,0.52508]
[1733534511499,0.02759257,4000.1,3999.1,3.0]
[1733534511806,0.7926,4000.2,3999.1,3.0]
[1733534512208,0.7926,4000.2,3999.1,0.52511]
[1733534512415,0.02751202,4000.1,3999.1,3.52511]
[1733534512618,0.8123,4000.0,3999.1,3.52511]
[1733534512820,0.83976122,4000.0,3999.1,3.52511]
[1733534512994,0.83976122,4000.0,3999.1,4.11186759]
[1733534513205,0.83976122,4000.0,3999.1,3.58675759]
[1733534513812,0.83976122,4000.0,3999.0,2.34246588]
[1733534514034,0.8123,3999.9,3998.6,2.86763588]
[1733534514206,0.83971042,3999.9,3998.6,2.86763588]
[1733534514412,0.83971042,3999.9,3998.6,2.34246588]
[1733534514671,1.7501,3999.8,3998.7,0.52516]
[1733534514940,0.8123,3999.7,3998.7,0.52516]
[1733534515246,0.027258,3999.6,3998.7,3.52516]
[1733534515395,1.777448,3999.6,3998.6,2.34246588]
[1733534515601,1.777448,3999.6,3998.3,3.64912217]
[1733534515602,0.8123,3999.5,3998.3,3.0]
[1733534515909,0.8123,3999.5,3997.1,3.12955089]
[1733534515910,0.8123,3999.1,3997.8,2.34246588]
[1733534516108,0.8123,3998.9,3998.0,0.52526]
[1733534516436,0.02658672,3998.8,3998.0,0.52526]
[1733534516640,0.02658672,3998.8,3998.1,0.52524]
[1733534517307,0.02658672,3998.8,3998.1,0.81201059]
[1733534521635,0.02658672,3998.8,3998.2,0.52523]
[1733534521947,0.02658672,3998.8,3998.3,0.02500841]
[1733534522239,0.8123,3999.2,3998.8,0.52515]
[1733534522543,0.8123,3999.2,3998.4,0.757]
[1733534522705,0.8123,3999.7,3998.6,5.34246588]
[1733534523241,0.8123,3999.7,3998.9,0.52513]
[1733534524679,0.8123,3999.7,3999.0,0.52513]
[1733534525003,0.02674288,3999.6,3999.0,0.52513]
[1733534525208,0.02674288,3999.6,3999.1,0.52511]
[1733534525416,0.8123,3999.7,3999.1,0.52511]
[1733534525947,0.02589479,3999.6,3999.1,0.52511]
[1733534526245,0.8123,3999.7,3999.2,0.5251]
[1733534526404,0.8123,3999.7,3998.6,2.34246588]
[1733534526405,0.02584398,3999.5,3998.6,5.34246588]
[1733534526601,1.75016,3999.7,3998.7,0.54886374]
[1733534526805,0.8123,3999.3,3998.2,5.86768588]
[1733534527001,0.02569153,3999.2,3998.2,5.86768588]
[1733534527215,0.8123,3999.1,3998.2,5.86768588]
[1733534527421,0.83794071,3999.1,3998.2,5.86768588]
[1733534527648,0.83794071,3999.1,3998.3,3.58676859]
[1733534527847,0.83794071,3999.1,3998.4,0.5252]
[1733534529431,0.83794071,3999.1,3998.3,3.58676859]
[1733534529764,0.83794071,3999.1,3998.3,4.11197859]
[1733534530365,0.83794071,3999.1,3998.3,3.58676859]
[1733534531073,0.83794071,3999.1,3998.4,0.5252]
[1733534531237,0.83794071,3999.1,3998.4,1.17064345]
[1733534531642,0.83794071,3999.1,3998.4,0.64544345]
[1733534532170,0.83493322,3999.1,3998.4,0.64544345]
[1733534532965,0.83493322,3999.1,3998.5,0.52519]
[1733534533262,0.83493322,3999.1,3998.4,0.64544345]
[1733534533830,0.83493322,3999.1,3998.3,3.0]
[1733534533831,0.55,3999.0,3998.1,3.0]
[1733534534033,1.75048,3998.9,3997.8,0.52528]
[1733534534333,0.02561102,3998.9,3997.8,3.52528]
[1733534534764,0.55,3999.0,3997.8,3.0]
[1733534534966,0.02556019,3998.8,3998.5,2.34246588]
[1733534535174,1.03669804,3999.5,3998.8,0.52515]
[1733534535175,0.02561102,3998.9,3998.8,0.52515]
[1733534535374,0.8286,3999.5,3999.1,0.52511]
[1733534536384,0.8286,3999.5,3998.9,2.34246588]
[1733534536584,0.8286,3999.9,3999.0,3.0]
[1733534536873,0.8286,3999.9,3998.6,3.23424659]
[1733534537178,0.8286,3999.9,3998.8,0.52514]
[1733534537420,0.8286,3999.9,3998.7,0.69138125]
[1733534537613,0.8286,3999.9,3998.9,0.52514]
[1733534538203,0.8286,3999.9,3999.0,0.02500344]
[1733534538377,0.8286,3999.9,3999.3,0.52509]
[1733534538819,0.8286,3999.9,3999.3,0.35500934]
[1733534539616,0.8286,3999.9,3999.5,0.52505]
[1733534540193,0.8286,3999.9,3999.3,0.35500934]
[1733534540394,1.3786,4000.6,3999.4,3.0]
[1733534540686,0.02640955,4000.5,3999.4,3.0]
[1733534540891,0.02640955,4000.5,3999.8,0.52502]
[1733534546128,0.8286,4000.4,3999.4,3.0]
[1733534546329,0.8286,3999.9,3999.1,0.52511]
[1733534546659,0.0257539,3999.8,3999.1,0.52511]
[1733534547552,0.0257539,3999.8,3998.6,3.02500328]
[1733534547762,0.0257539,3999.8,3999.2,0.52509]
[1733534549356,0.0257539,3999.8,3999.0,0.52512]
[1733534549758,0.7946,3999.7,3999.0,0.52512]
[1733534550059,0.02557172,3999.6,3998.8,0.52515]
[1733534550821,0.02557172,3999.6,3999.1,0.52511]
[1733534551125,0.02557172,3999.6,3999.2,0.28675759]
[1733534551325,0.02557172,3999.6,3999.4,0.52507]
[1733534551537,0.7946,3999.7,3999.4,0.52507]
[1733534551738,0.7946,3999.7,3999.2,0.28675759]
[1733534551944,0.7946,3999.7,3999.2,0.81185759]
[1733534552144,0.7946,3999.7,3999.3,0.38118576]
[1733534552578,0.7946,3999.7,3999.2,0.28675759]
[1733534552904,0.02551417,3999.6,3999.2,0.28675759]
[1733534553201,0.02551417,3999.6,3999.2,0.81184759]
[1733534553865,0.7946,3999.7,3999.2,0.81184759]
[1733534554094,0.7946,3999.7,3999.2,0.28675759]
[1733534554294,0.02550841,3999.6,3999.3,0.32867576]
[1733534554915,0.7946,3999.7,3999.3,0.85375576]
[1733534555116,0.7946,3999.7,3998.7,0.52516]
[1733534555802,0.7946,3999.5,3998.5,5.34246588]
[1733534555978,0.7946,3999.5,3998.8,0.52515]
[1733534556178,0.02542118,3999.4,3998.8,0.52515]
[1733534556400,0.02542118,3999.4,3999.2,3.0]
[1733534556803,0.02542118,3999.4,3998.8,0.52515]
[1733534557005,0.02542118,3999.4,3998.8,1.11191159]
[1733534558604,0.02542118,3999.4,3998.8,0.58676159]
[1733534559265,1.75035,3999.2,3998.2,3.0]
[1733534559481,0.7946,3999.1,3998.1,0.52524]
[1733534559695,0.81952629,3999.1,3998.1,0.52524]
[1733534559927,0.85664019,3999.0,3998.1,0.52524]
[1733534560129,0.02487547,3999.0,3998.1,0.52524]
[1733534560943,0.7946,3998.9,3998.1,0.52524]
[1733534561242,0.02477381,3998.8,3998.1,0.52524]
[1733534561439,0.02477381,3998.8,3998.2,0.52523]
[1733534561607,0.02477381,3998.8,3998.3,0.52521]
[1733534561801,0.02477381,3998.8,3998.6,0.52517]
[1733534562001,0.02477381,3998.8,3998.5,2.34246588]
[1733534562246,0.7946,3999.2,3998.5,5.34246588]
[1733534562429,0.7946,3999.2,3998.4,0.5252]
[1733534562430,0.02446106,3998.7,3998.4,0.5252]
[1733534562626,0.7946,3999.2,3998.5,0.35252]
[1733534562832,0.02447847,3999.1,3998.5,0.35252]
[1733534563661,0.02447847,3999.1,3998.5,0.87771]
[1733534564839,0.02447847,3999.1,3998.5,0.35252]
[1733534565052,0.02447847,3999.1,3998.6,0.52518]
[1733534565353,0.02447847,3999.1,3999.0,0.52513]
[1733534565512,0.02447847,3999.1,3999.0,3.71185055]
[1733534565712,0.7946,3999.6,3999.2,0.5251]
[1733534566458,0.02455288,3999.5,3999.2,0.5251]
[1733534566754,0.02455288,3999.5,3999.4,0.52507]
[1733534566910,0.7946,3999.9,3999.4,0.52507]
[1733534567109,0.02638991,3999.5,3999.4,0.52507]
[1733534567348,0.7946,3999.9,3999.0,3.71183055]
[1733534567349,0.7946,3999.9,3999.5,0.52505]
[1733534567766,1.74969,4000.7,3999.3,2.34246588]
[1733534567767,0.7946,4000.3,3999.3,2.34246588]
[1733534567933,0.7946,4000.3,3999.6,0.52504]
[1733534568327,0.7946,4000.3,3999.8,0.52502]
[1733534570130,0.02517904,4000.2,3999.8,0.52502]
[1733534570362,0.7946,4000.3,3999.8,0.52502]
[1733534570578,0.7946,4000.3,4000.0,0.52499]
[1733534570872,0.02517904,4000.2,4000.1,0.52498]
[1733534571189,0.8254,4000.6,4000.3,0.52495]
[1733534571560,0.0254091,4000.5,4000.3,0.52495]
[1733534571760,0.8254,4000.6,4000.3,0.52495]
[1733534572464,0.8254,4000.6,4000.0,0.52498]
[1733534572676,0.8254,4000.6,3999.8,3.0]
[1733534572837,0.8254,4000.6,3999.6,0.52504]
[1733534573165,0.8254,4000.6,3999.3,2.34246588]
[1733534573166,0.28297552,4000.5,3999.7,0.52503]
[1733534573533,0.28297552,4000.5,3999.8,0.52502]
[1733534574059,0.02546952,4000.5,3999.9,0.52501]
[1733534574427,0.02546952,4000.5,3999.4,3.0]
[1733534574630,0.02546952,4000.5,3999.7,3.11896588]
[1733534574827,0.02546952,4000.5,4000.0,0.52499]
[1733534575475,0.8254,4000.6,4000.0,0.52499]
[1733534575765,0.8254,4000.6,3999.8,3.0]
[1733534575766,0.8254,4000.6,4000.1,0.52498]
[1733534577234,0.8254,4000.6,3999.8,3.0]
[1733534577435,0.02549253,4000.5,3999.8,3.61189659]
[1733534578149,0.02549253,4000.5,4000.0,0.52499]
[1733534578335,0.02549253,4000.5,3999.8,3.52502]
[1733534578874,0.02549253,4000.5,3999.9,0.52501]
[1733534579459,0.02549253,4000.5,4000.3,3.0]
[1733534579657,0.26005925,4000.4,3999.6,0.52504]
[1733534579834,0.26005925,4000.4,3999.3,0.52509]
[1733534579835,0.8254,4000.3,3999.3,0.52509]
[1733534580175,0.02569986,4000.2,3999.3,0.52509]
[1733534580344,0.02569986,4000.2,3999.1,2.34246588]
[1733534580556,0.02569986,4000.2,3999.5,0.52506]
[1733534580868,0.02569986,4000.2,3999.3,0.52509]
[1733534581048,0.31179777,4000.2,3999.4,0.52507]
[1733534581453,0.31179777,4000.2,3999.2,3.0]
[1733534581760,0.31179777,4000.2,3999.2,3.52509]
[1733534581932,0.8254,4000.1,3999.2,3.52509]
[1733534582134,0.85104906,4000.1,3999.2,3.52509]
[1733534583278,1.16575668,4000.1,3999.2,3.52509]
[1733534584043,0.85104906,4000.1,3999.2,3.52509]
[1733534584947,0.85104906,4000.1,3999.3,0.52508]
[1733534585265,0.85104906,4000.1,3999.2,3.0]
[1733534586389,0.85104906,4000.1,3999.3,0.52509]
[1733534587153,0.85104906,4000.1,3999.1,2.34246588]
[1733534587341,0.85104906,4000.1,3999.2,3.0]
[1733534587885,1.21481377,4000.1,3999.2,3.0]
[1733534588176,0.8254,4000.0,3998.7,2.34246588]
[1733534588342,0.8254,4000.0,3998.3,0.12562974]
[1733534588343,0.8254,3999.8,3998.2,0.7765]
[1733534588544,0.7726,3999.6,3997.8,2.34246588]
[1733534588766,0.7726,3999.3,3998.1,0.52524]
[1733534588968,0.7726,3999.2,3998.1,0.52524]
[1733534589167,0.79749543,3999.2,3998.1,0.52524]
[1733534589489,0.79749543,3999.2,3998.2,0.52523]
[1733534591081,0.79749543,3999.2,3998.3,0.52521]
[1733534591384,0.7726,3999.1,3998.1,0.52524]
[1733534591679,0.02479378,3999.0,3998.1,0.52524]
[1733534592561,0.02479378,3999.0,3998.6,0.52518]
[1733534592895,0.02479378,3999.0,3998.4,0.5252]
[1733534593485,0.02479378,3999.0,3998.2,2.86769588]
[1733534593642,0.02479378,3999.0,3998.3,3.52522]
[1733534594460,0.02479378,3999.0,3998.4,0.5252]
[1733534594707,0.02479378,3999.0,3998.4,1.12417463]
[1733534595010,0.7726,3999.1,3998.6,0.52517]
[1733534596118,0.7726,3999.1,3998.4,0.5252]
[1733534596319,0.7726,3999.1,3998.3,3.0]
[1733534596519,0.7726,3999.1,3998.3,3.52521]
[1733534596669,0.02437458,3999.0,3998.3,3.52521]
[1733534598290,0.02437458,3999.0,3998.4,0.5252]
[1733534598608,0.02437458,3999.0,3998.4,0.58676659]
[1733534598766,0.02437458,3999.0,3998.7,0.52515]
[1733534599099,0.7726,3999.1,3998.8,0.52515]
[1733534600361,0.7726,3999.1,3998.4,0.58676659]
[1733534600362,0.7726,3999.1,3998.6,0.52518]
[1733534600561,0.02437458,3999.0,3998.6,0.52518]
[1733534600802,0.02437458,3999.0,3998.4,0.58676659]
[1733534600966,0.02437458,3999.0,3998.3,3.52521]
[1733534601375,0.02437458,3999.0,3998.3,0.52521]
[1733534601616,0.02437458,3999.0,3998.1,3.52524]
[1733534601818,0.02437458,3999.0,3998.2,0.52522]
[1733534602023,0.02437458,3999.0,3997.8,0.8124]
[1733534602313,0.02437458,3999.0,3997.9,3.14632169]
[1733534602614,0.02437458,3999.0,3998.4,0.5252]
[1733534603277,0.02437458,3999.0,3998.0,0.52526]
[1733534603621,0.02437458,3999.0,3998.5,0.52519]
[1733534603980,0.02437458,3999.0,3998.7,0.52517]
[1733534604180,0.02437458,3999.0,3998.7,0.52516]
[1733534604481,0.7726,3999.1,3998.7,0.52516]
[1733534605319,0.7825,3999.8,3998.5,0.52519]
[1733534605617,0.55,3999.7,3998.9,0.52513]
[1733534605822,0.7825,3999.8,3999.4,0.52507]
[1733534606119,0.7825,3999.8,3998.7,3.52516]
[1733534606536,0.7825,3999.8,3998.8,0.52515]
[1733534606704,0.7825,3999.7,3998.7,3.0]
[1733534607036,0.7825,3999.7,3998.3,3.52521]
[1733534607214,0.7825,3999.5,3998.7,0.52516]
[1733534608019,0.02608368,3999.4,3998.7,0.52516]
[1733534608505,0.02608368,3999.4,3998.8,0.52515]
[1733534608718,0.96315837,3999.3,3998.2,2.34246588]
[1733534608897,0.85332923,3999.3,3998.5,0.52519]
[1733534609423,0.85332923,3999.3,3998.2,2.34246588]
[1733534609619,0.85332923,3999.3,3998.6,0.52518]
[1733534612798,0.55,3999.2,3997.8,2.86774588]
[1733534613004,0.7605,3999.1,3998.2,0.52522]
[1733534613435,0.57597478,3999.2,3998.2,0.52522]
[1733534613436,0.78636588,3999.0,3998.2,0.52522]
[1733534614998,0.78636588,3999.0,3997.6,0.7536]
[1733534614999,0.55,3998.9,3997.6,0.52531]
[1733534615202,0.55,3998.5,3997.6,0.52531]
[1733534615432,0.7605,3998.4,3997.2,0.7536]
[1733534615643,0.55,3998.3,3997.4,0.52533]
[1733534615844,0.55,3998.3,3997.2,0.7536]
[1733534615845,0.57548461,3998.3,3997.2,0.7536]
[1733534616142,0.02548461,3998.3,3997.5,0.52532]
[1733534616315,0.57548461,3998.3,3997.4,2.34246588]
[1733534616525,0.57548461,3998.3,3997.5,3.52532]
[1733534617525,0.57548461,3998.3,3997.7,0.5253]
[1733534617729,0.55,3998.3,3997.5,3.68715185]
[1733534618125,0.55,3998.3,3997.6,0.52531]
[1733534618514,0.02519877,3998.2,3997.4,0.52533]
[1733534618722,0.7605,3998.1,3997.4,0.52533]
[1733534618918,0.7605,3998.1,3997.5,0.52531]
[1733534619249,0.7605,3998.1,3997.2,0.7536]
[1733534619250,0.7605,3998.1,3997.2,0.52535]
[1733534619414,0.55,3998.0,3996.8,3.0]
[1733534619616,0.7605,3997.9,3997.0,0.52539]
[1733534620010,0.7605,3997.7,3997.0,0.52539]
[1733534620434,0.02487185,3997.6,3997.0,0.52539]
[1733534620637,0.02487185,3997.6,3996.7,3.0]
[1733534620839,0.57487185,3997.6,3996.7,3.02501642]
[1733534621160,0.55,3997.1,3996.3,0.00750004]
[1733534621338,0.55,3996.9,3996.3,0.00750004]
[1733534621544,0.55,3996.7,3996.3,0.00750004]
[1733534621914,0.02412313,3996.6,3996.3,0.00750004]
[1733534622116,1.3105,3996.4,3996.3,0.00750004]
[1733534622359,1.33451408,3996.4,3996.3,0.00750004]
[1733534622963,1.46796549,3996.4,3996.3,0.00750004]
[1733534623162,1.33451408,3996.4,3996.3,0.00750004]
[1733534624428,1.3105,3996.4,3996.3,0.00750004]
[1733534625146,0.7605,3996.4,3996.3,0.00750004]
[1733534625459,0.7605,3997.4,3996.3,0.53298004]
[1733534625961,0.02740773,3997.3,3996.4,0.52546]
[1733534626161,0.02740773,3997.3,3996.3,0.00750004]
[1733534626364,0.02740773,3997.3,3996.5,0.52545]
[1733534628527,0.02740773,3997.3,3996.3,0.00750004]
[1733534628731,0.02740773,3997.3,3996.3,1.35624763]
[1733534629450,0.02740773,3997.3,3996.3,1.34874759]
[1733534629763,0.02740773,3997.3,3996.4,5.36748493]
[1733534629961,0.8331,3997.8,3997.2,0.52536]
[1733534630256,0.8331,3997.8,3997.1,0.52537]
[1733534631675,0.02581683,3997.7,3996.5,3.0]
[1733534631876,0.02581683,3997.7,3997.2,0.52536]
[1733534632094,0.8331,3997.8,3997.2,0.52536]
[1733534632444,0.02568481,3997.7,3997.2,0.52536]
[1733534632749,0.8331,3997.8,3997.2,0.52536]
[1733534633151,1.03669804,3998.9,3996.6,0.734324]
[1733534633152,0.0258211,3997.7,3997.6,0.52531]
[1733534633667,0.8331,3998.2,3997.6,0.52531]
[1733534634074,0.0243799,3998.1,3997.6,0.52531]
[1733534634505,0.0243799,3998.1,3996.9,3.12803458]
[1733534634506,0.55,3998.8,3996.8,5.34246588]
[1733534634776,0.8331,3998.3,3996.9,3.0]
[1733534634987,0.8331,3998.3,3997.2,0.52536]
[1733534635158,0.02451154,3998.2,3997.2,0.52536]
[1733534635553,0.02451154,3998.2,3996.8,2.34246588]
[1733534635765,0.8331,3998.3,3997.0,0.7612]
[1733534635974,0.8331,3998.3,3997.6,0.5253]
[1733534636179,0.02450537,3998.2,3997.2,5.34246588]
[1733534636378,1.55504706,3999.4,3997.9,0.7612]
[1733534636379,0.8331,3999.3,3997.9,0.7612]
[1733534636585,0.38705582,3999.2,3997.9,0.7612]
[1733534636885,0.02505002,3999.2,3998.5,0.52519]
[1733534637447,0.02505002,3999.2,3997.9,0.7612]
[1733534637661,0.8331,3999.1,3998.3,0.52522]
[1733534638158,0.02494111,3999.0,3998.3,0.52522]
[1733534639198,0.02494111,3999.0,3997.9,0.7612]
[1733534639383,0.8331,3999.1,3998.0,2.71858588]
[1733534639586,0.8331,3999.1,3998.7,0.52516]
[1733534640586,0.8331,3999.1,3998.4,0.5252]
[1733534641004,0.8331,3999.1,3998.5,0.52519]
[1733534641005,0.0252805,3999.0,3998.5,0.52519]
[1733534641867,0.8331,3998.9,3997.9,0.52526]
[1733534642071,0.55,3998.6,3997.8,0.52528]
[1733534642466,0.02500819,3998.5,3997.8,0.52528]
[1733534644736,0.8331,3998.4,3997.5,0.52532]
[1733534645097,0.02489924,3998.3,3997.7,0.5253]
[1733534647022,0.8331,3998.0,3997.0,0.52538]
[1733534647193,2.30083,3998.1,3997.0,0.52538]
[1733534647194,0.02468132,3997.9,3997.0,0.52538]
[1733534647519,0.8331,3997.8,3997.0,0.52538]
[1733534647891,0.8331,3997.6,3996.8,2.34246588]
[1733534648223,0.02446335,3997.5,3996.8,0.52541]
[1733534648886,0.7598,3997.4,3996.6,0.52544]
[1733534649085,1.01332733,3997.4,3996.6,0.52544]
[1733534649292,0.02397481,3997.3,3996.6,0.52544]
[1733534649495,0.02397481,3997.3,3996.1,3.52551]
[1733534649496,0.02397481,3997.3,3996.1,3.0]
[1733534649700,0.02397481,3997.3,3996.8,0.52542]
[1733534649896,0.02397481,3997.3,3996.2,0.52549]
[1733534650206,0.02397481,3997.3,3996.5,3.0]
[1733534650349,0.02397481,3997.3,3996.7,0.52542]
[1733534650532,0.7598,3997.4,3996.7,0.52542]
[1733534650732,0.7598,3997.4,3996.8,0.52541]
[1733534651125,0.02397481,3997.3,3996.8,0.52541]
[1733534652023,0.02397481,3997.3,3996.6,0.52544]
[1733534652864,0.7598,3997.2,3996.2,0.52549]
[1733534653014,0.55,3996.9,3995.8,0.52554]
[1733534653349,0.78350226,3996.8,3995.8,0.52554]
[1733534654156,0.78350226,3996.8,3995.4,5.34246588]
[1733534654554,0.78350226,3996.8,3995.5,3.0]
[1733534654730,0.78350226,3996.8,3995.7,0.52556]
[1733534654929,0.7598,3996.7,3995.7,0.52556]
[1733534655136,0.7598,3996.7,3995.4,2.34246588]
[1733534655137,0.78344775,3996.7,3995.8,0.52555]
[1733534655669,0.78344775,3996.7,3995.5,3.0]
[1733534655856,0.78344775,3996.7,3996.4,0.52547]
[1733534656171,0.78344775,3996.7,3995.8,2.34246588]
[1733534656172,0.7598,3996.7,3995.8,2.34246588]
[1733534656375,0.7598,3996.7,3995.9,3.53424659]
[1733534656734,0.1348,3996.7,3995.9,3.53424659]
[1733534656961,0.1348,3996.7,3995.9,4.05977659]
[1733534657369,0.1348,3996.7,3996.1,0.5255]
[1733534657693,2.78764804,3997.9,3995.4,2.34246588]
[1733534657694,0.55,3996.8,3995.4,2.34246588]
[1733534657848,0.55,3996.8,3995.7,0.52556]